fUSD/lending_fUSD_20240526
["ID","MTS","AMOUNT","RATE_DAILY","PERIOD"]
[327994567,1716765053041,-862.67,0.00027397,4]
[327994568,1716765053050,-500.0,0.00027397,4]
[327994569,1716765053059,-500.0,0.00027397,4]
[327994570,1716765053068,-564.17,0.00027397,4]
[327994571,1716765053078,-773.09,0.00027397,4]
[327994572,1716765053088,-500.0,0.00027397,4]
[327994573,1716765053097,-500.0,0.00027397,4]
[327994574,1716765053107,-547.24,0.0002767,4]
[327994575,1716765053116,-500.0,0.0002767,4]
[327994576,1716765053125,-574.05,0.0002767,4]
[327994577,1716765053136,-500.0,0.0002767,4]
[327994578,1716765053145,-2845.31,0.0002767,4]
[327994579,1716765053154,-88923.03029837,0.0002767,9]
[327994580,1716765053553,-629258.0717178,0.0002767,9]
[327994581,1716765053563,-500.0,0.00027671,4]
[327994582,1716765053573,-500.0,0.00027671,4]
[327994583,1716765053584,-199.16,0.00027671,4]
[327994584,1716765053594,-500.0,0.00027671,4]
[327994585,1716765053603,-517.28,0.00027671,4]
[327994586,1716765053613,-225.61,0.00027671,4]
[327994587,1716765053622,-559.73,0.00027671,4]
[327994588,1716765053631,-505.04,0.00027671,4]
[327994589,1716765053640,-500.0,0.00027671,4]
[327994590,1716765053650,-529.38589421,0.00027671,4]
[327994591,1716765053659,-500.0,0.00027671,4]
[327994592,1716765053668,-523.06072107,0.00027671,4]
[327994593,1716765053678,-500.0,0.00027671,4]
[327994594,1716765053687,-500.0,0.00027671,4]
[327994595,1716765053696,-500.0,0.00027671,4]
[327994596,1716765053706,-515.35052714,0.00027671,4]
[327994597,1716765053715,-500.0,0.00027671,4]
[327994598,1716765053724,-500.0,0.00027671,4]
[327994599,1716765053733,-500.0,0.00027671,4]
[327994600,1716765053743,-418.45,0.00027671,4]
[327994601,1716765053752,-500.0,0.00027671,4]
[327994602,1716765053761,-555.63,0.00027671,4]
[327994603,1716765053770,-304.6,0.00027671,4]
[327994604,1716765053779,-500.0,0.00027671,4]
[327994605,1716765053791,-240.24,0.00027671,4]
[327994606,1716765053804,-500.0,0.00027671,4]
[327994607,1716765053813,-313.72,0.00027671,4]
[327994608,1716765053822,-500.0,0.00027671,4]
[327994609,1716765053831,-500.0,0.00027671,4]
[327994610,1716765053840,-500.0,0.00027671,4]
[327994611,1716765053849,-566.63757608,0.00027671,4]
[327994612,1716765053859,-500.0,0.00027671,4]
[327994613,1716765053868,-500.0,0.00027671,4]
[327994614,1716765053879,-500.0,0.00027671,4]
[327994615,1716765053888,-500.0,0.00027671,4]
[327994616,1716765053898,-450.92394216,0.00027671,4]
[327994617,1716765053912,-49.07605784,0.00027671,4]
[327994618,1716765053921,-500.0,0.00027671,4]
[327994619,1716765053930,-87.14426472,0.00027671,4]
[327994620,1716765053943,-412.85573528,0.00027671,4]
[327994621,1716765053954,-511.52967044,0.00027671,4]
[327994622,1716765053965,-500.0,0.00027671,4]
[327994623,1716765053975,-295.42905196,0.00027671,4]
[327994624,1716765053986,-301.0407829,0.00027671,4]
[327994625,1716765053996,-340.65975569,0.00027671,4]
[327994626,1716765054007,-159.34024431,0.00027671,4]
[327994627,1716765054016,-522.80132198,0.00027671,4]
[327994628,1716765054025,-500.0,0.00027671,4]
[327994629,1716765054034,-516.4565004,0.00027671,4]
[327994630,1716765054044,-500.0,0.00027671,4]
[327994631,1716765054054,-500.0,0.00027671,4]
[327994632,1716765054063,-500.0,0.00027671,4]
[327994633,1716765054073,-500.0,0.00027671,4]
[327994634,1716765054082,-505.77869162,0.00027671,4]
[327994635,1716765054091,-500.0,0.00027671,4]
[327994636,1716765054101,-500.0,0.00027671,4]
[327994637,1716765054110,-500.0,0.00027671,4]
[327994638,1716765054119,-500.0,0.00027671,4]
[327994639,1716765054128,-500.0,0.00027671,4]
[327994640,1716765054138,-500.0,0.00027671,4]
[327994641,1716765054147,-500.0,0.00027671,4]
[327994642,1716765054156,-500.0,0.00027671,4]
[327994643,1716765054165,-500.0,0.00027671,4]
[327994644,1716765054175,-584.54995641,0.00027671,4]
[327994645,1716765054185,-500.0,0.00027671,4]
[327994646,1716765054194,-500.0,0.00027671,4]
[327994647,1716765054203,-528.98522522,0.00027671,4]
[327994648,1716765054212,-500.0,0.00027671,4]
[327994649,1716765054222,-500.0,0.00027671,4]
[327994650,1716765054231,-500.0,0.00027671,4]
[327994651,1716765054240,-527.71587109,0.00027671,4]
[327994652,1716765054249,-500.0,0.00027671,4]
[327994653,1716765054258,-500.0,0.00027671,4]
[327994654,1716765054268,-500.0,0.00027671,4]
[327994655,1716765054278,-500.0,0.00027671,4]
[327994656,1716765054287,-510.47245952,0.00027671,4]
[327994657,1716765054297,-559.78641741,0.00027671,4]
[327994658,1716765054306,-500.0,0.00027671,4]
[327994659,1716765054315,-500.0,0.00027671,4]
[327994660,1716765054324,-500.0,0.00027671,4]
[327994661,1716765054334,-500.0,0.00027671,4]
[327994662,1716765054343,-500.0,0.00027671,4]
[327994663,1716765054352,-500.0,0.00027671,4]
[327994664,1716765054362,-500.0,0.00027671,4]
[327994665,1716765054371,-500.0,0.00027671,4]
[327994666,1716765054380,-500.0,0.00027671,4]
[327994667,1716765054390,-500.0,0.00027671,4]
[327994668,1716765054400,-500.0,0.00027671,4]
[327994669,1716765054410,-500.0,0.00027671,4]
[327994670,1716765054419,-500.0,0.00027671,4]
[327994671,1716765054428,-500.0,0.00027671,4]
[327994672,1716765054438,-500.0,0.00027671,4]
[327994673,1716765054448,-500.0,0.00027671,4]
[327994674,1716765054458,-2024.95510133,0.00027671,4]
[327994675,1716765054467,-500.0,0.00027671,4]
[327994676,1716765054476,-500.0,0.00027671,4]
[327994677,1716765054485,-500.0,0.00027671,4]
[327994678,1716765054494,-500.0,0.00027671,4]
[327994679,1716765054504,-500.0,0.00027671,4]
[327994680,1716765054514,-500.0,0.00027671,4]
[327994681,1716765054523,-500.0,0.00027671,4]
[327994682,1716765054532,-500.0,0.00027671,4]
[327994683,1716765054541,-500.0,0.00027671,4]
[327994684,1716765054551,-500.0,0.00027671,4]
[327994685,1716765054560,-500.0,0.00027671,4]
[327994686,1716765054569,-500.0,0.00027671,4]
[327994687,1716765054578,-500.0,0.00027671,4]
[327994688,1716765054587,-500.0,0.00027671,4]
[327994689,1716765054596,-500.0,0.00027671,4]
[327994690,1716765054605,-500.0,0.00027671,4]
[327994691,1716765054616,-500.0,0.00027671,4]
[327994692,1716765054625,-500.0,0.00027671,4]
[327994693,1716765054635,-500.0,0.00027671,4]
[327994694,1716765054645,-500.0,0.00027671,4]
[327994695,1716765054654,-500.0,0.00027671,4]
[327994696,1716765054662,-500.0,0.00027671,4]
[327994697,1716765054672,-115.43734772,0.00027671,4]
[327994698,1716765054690,-384.56265228,0.00027671,4]
[327994699,1716765054699,-500.0,0.00027671,4]
[327994700,1716765054708,-500.0,0.00027671,4]
[327994701,1716765054716,-67.29164542,0.00027671,4]
[327994702,1716765054740,-432.70835458,0.00027671,4]
[327994703,1716765054749,-500.0,0.00027671,4]
[327994704,1716765054758,-500.0,0.00027671,4]
[327994705,1716765054865,-500.0,0.00027671,4]
[327994706,1716765054878,-500.0,0.00027671,4]
[327994707,1716765054888,-557.3770421,0.00027671,4]
[327994708,1716765054898,-500.0,0.00027671,4]
[327994709,1716765054907,-500.0,0.00027671,4]
[327994710,1716765054918,-500.0,0.00027671,4]
[327994711,1716765054927,-616.7517875,0.00027671,4]
[327994712,1716765054937,-500.0,0.00027671,4]
[327994713,1716765054946,-500.0,0.00027671,4]
[327994714,1716765054956,-500.0,0.00027671,4]
[327994715,1716765054966,-500.0,0.00027671,4]
[327994716,1716765054975,-500.0,0.00027671,4]
[327994717,1716765054985,-589.38,0.00027671,4]
[327994718,1716765054994,-500.0,0.00027671,4]
[327994719,1716765055003,-500.0,0.00027671,4]
[327994720,1716765055012,-500.0,0.00027671,4]
[327994721,1716765055022,-500.0,0.00027671,4]
[327994722,1716765055031,-588.54,0.00027671,4]
[327994723,1716765055041,-74.91881579,0.00027671,4]
[327994724,1716765055179,-2611.26503579,0.00015637,2]
[327994725,1716765055329,-148.39217987,0.00015637,2]
[327994726,1716765055356,-746.53736531,0.00015637,2]
[327994727,1716765055633,-6493.80541903,0.00015637,2]
[327994728,1716765055642,-673.77,0.00027387,3]
[327994729,1716765055652,-500.0,0.00027397,4]
[327994730,1716765055662,-500.0,0.00027397,4]
[327994731,1716765055672,-500.0,0.00027397,4]
[327994732,1716765055681,-500.0,0.00027397,4]
[327994733,1716765055691,-500.0,0.00027397,4]
[327994734,1716765055701,-500.0,0.00027397,4]
[327994735,1716765055710,-425.08118421,0.00027671,4]
[327994736,1716765055720,-580.68,0.00027671,4]
[327994737,1716765055729,-328.48060174,0.00027671,4]
[327994738,1716765055741,-171.51939826,0.00027671,4]
[327994739,1716765055750,-500.0,0.00027671,4]
[327994740,1716765055759,-374.53261989,0.00027671,4]
[327994741,1716765055782,-125.46738011,0.00027671,4]
[327994742,1716765055793,-547.7531078,0.00027671,4]
[327994743,1716765055803,-500.0,0.00027671,4]
[327994744,1716765055813,-500.0,0.00027671,4]
[327994745,1716765055822,-500.0,0.00027671,4]
[327994746,1716765055831,-521.24845751,0.00027671,4]
[327994747,1716765055841,-500.0,0.00027671,4]
[327994748,1716765055851,-500.0,0.00027671,4]
[327994749,1716765055859,-500.0,0.00027671,4]
[327994750,1716765055870,-581.61890956,0.00027671,4]
[327994751,1716765055879,-113.41535447,0.00027671,4]
[327994752,1716765055892,-386.75177176,0.00027671,4]
[327994753,1716765055901,-500.0,0.00027671,4]
[327994754,1716765055910,-500.0,0.00027671,4]
[327994755,1716765055919,-500.0,0.00027671,4]
[327994756,1716765055928,-500.0,0.00027671,4]
[327994757,1716765055937,-341.96300064,0.00027671,4]
[327994758,1716765163094,1698.84485209,0.00030408,120]
[327994810,1716766030183,-324.08662883,0.00013972,2]
[327994820,1716766231964,-521.97670531,0.00013972,2]
[327994821,1716766231976,-78.61625674,0.00013972,2]
[327994822,1716766231986,-218.56630826,0.00013973,2]
[327994823,1716766231998,-7.57369174,0.00013973,2]
[327994824,1716766232007,-154.54,0.00013973,2]
[327994825,1716766232016,-1293.58844082,0.00015436,2]
[327994826,1716766232026,-150.0,0.00015535,2]
[327994827,1716766232035,-150.0,0.00015535,2]
[327994828,1716766232045,-2057.47775092,0.00015536,2]
[327994829,1716766232056,-496.29675969,0.00015536,2]
[327994830,1716766232108,-1416.87629935,0.00015536,2]
[327994831,1716766232120,-422.76314946,0.00015536,2]
[327994832,1716766232132,-2478.29101073,0.00015536,2]
[327994833,1716766232145,-556.70320369,0.00015536,2]
[327994834,1716766232161,-2360.35387545,0.00015536,2]
[327994835,1716766232172,-338.21465071,0.00015536,2]
[327994836,1716766232182,-230.14534929,0.00015538,2]
[327994837,1716766232195,-408.64992539,0.00015538,2]
[327994838,1716766232207,-654.79316615,0.00015538,2]
[327994839,1716766232216,-2064.25733022,0.00015637,2]
[327994840,1716766232362,-0.00785224,0.00015637,2]
[327994841,1716766232374,-949.01746547,0.00015637,2]
[327994842,1716766232385,-296.53135641,0.00015637,2]
[327994843,1716766232396,-725.86856105,0.00015637,2]
[327994844,1716766232408,-560.2023371,0.00015637,2]
[327994845,1716766232419,-5404.11509751,0.00015637,2]
[327994846,1716766232429,-255.32,0.00018316,2]
[327994847,1716766232438,-499.99,0.00018316,2]
[327994848,1716766232447,-151.0,0.00018334,3]
[327994849,1716766232457,-151.0,0.00018334,2]
[327994850,1716766232467,-410.67512791,0.00019451,2]
[327994851,1716766232477,-6244.01880649,0.0002,2]
[327994852,1716766232486,-634.05792568,0.000203,2]
[327994853,1716766232495,-228.52,0.00020301,2]
[327994854,1716766232505,-226.14,0.00020447,2]
[327994855,1716766232514,-2721.40650555,0.00020998,2]
[327994856,1716766232526,-752.35031756,0.00020998,2]
[327994857,1716766232537,-479.17421262,0.00020998,2]
[327994858,1716766232548,-351.68374011,0.00020998,2]
[327994859,1716766232567,-584.31,0.00020998,2]
[327994860,1716766232579,-301.08469561,0.00020998,2]
[327994861,1716766232588,-970.38217885,0.00021,2]
[327994862,1716766232600,-79.61782115,0.00021,2]
[327994863,1716766232609,-490.38217879,0.000219,2]
[327994864,1716766232621,-351.899999,0.000219,2]
[327994865,1716766232632,-5934.0120885,0.000219,2]
[327994866,1716766232642,-3284.33,0.00022124,2]
[327994867,1716766232651,-200.0,0.00022181,2]
[327994868,1716766232660,-5365.97618011,0.00022218,2]
[327994869,1716766232671,-3795.54127042,0.00022218,2]
[327994870,1716766232682,-2751.0,0.00022219,2]
[327994871,1716766232691,-250.0,0.0002222,2]
[327994872,1716766232701,-250.0,0.0002226,2]
[327994873,1716766232710,-6552.52068604,0.00022274,2]
[327994874,1716766232722,-315.0,0.00022274,2]
[327994875,1716766232733,-1443.90783892,0.00022274,2]
[327994876,1716766232744,-15568.57147504,0.00022274,2]
[327994877,1716766232754,-1990.19,0.00022316,2]
[327994878,1716766232763,-1354.32792744,0.00022409,2]
[327994879,1716766232775,-1230.59207256,0.00022409,2]
[327994880,1716766232784,-2000.0,0.00022423,2]
[327994881,1716766232793,-182.4,0.00022441,2]
[327994882,1716766232803,-365.96,0.00022457,2]
[327994883,1716766232812,-538.44,0.00022458,2]
[327994884,1716766232821,-250.0,0.00022563,2]
[327994885,1716766232831,-228.52,0.00022565,2]
[327994886,1716766232840,-200.0,0.00022569,2]
[327994887,1716766232849,-150.0,0.00022571,2]
[327994888,1716766232859,-163.77,0.00022773,2]
[327994889,1716766232868,-1100.0,0.00023,2]
[327994890,1716766232878,-154.51,0.00023308,2]
[327994891,1716766232887,-154.51,0.00023321,2]
[327994892,1716766232896,-154.51,0.00023334,2]
[327994893,1716766232906,-154.51,0.00023347,2]
[327994894,1716766232915,-154.51,0.0002336,2]
[327994895,1716766232926,-154.51,0.00023373,2]
[327994896,1716766232935,-154.51,0.00023386,2]
[327994897,1716766232945,-154.51,0.00023399,2]
[327994898,1716766233045,-154.51,0.00023412,2]
[327994899,1716766233060,-154.51,0.00023425,2]
[327994900,1716766233069,-150.0,0.00023471,2]
[327994901,1716766233080,-155.04118763,0.00024065,2]
[327994902,1716766233091,-180.0,0.0002455,2]
[327994903,1716766233100,-228.52,0.00024829,2]
[327994904,1716766233110,-1150.0,0.00025,2]
[327994905,1716766233119,-403.19688555,0.00025055,2]
[327994906,1716766233131,-1586.99311445,0.00025055,2]
[327994907,1716766233142,-538.44,0.00025265,2]
[327994908,1716766233154,-543.04,0.00025646,2]
[327994909,1716766233163,-1000.0,0.00025985,2]
[327994910,1716766233172,-226.14,0.00026921,2]
[327994911,1716766233183,-1200.0,0.00027,2]
[327994912,1716766233193,-228.52,0.00027092,2]
[327994913,1716766233202,-1245.7861,0.00027297,2]
[327994914,1716766233211,-1688.6493,0.00027297,2]
[327994915,1716766233225,-1000.0,0.00027297,2]
[327994916,1716766233235,-1000.0,0.00027297,2]
[327994917,1716766233245,-1000.0,0.00027297,2]
[327994918,1716766233255,-2957.215,0.00027297,2]
[327994919,1716766233264,-214.0,0.00027297,2]
[327994920,1716766233274,-1214.89532937,0.00027297,2]
[327994921,1716766233283,-152.86815809,0.00027297,2]
[327994922,1716766233293,-323.08380019,0.00027297,2]
[327994923,1716766233305,-851.08,0.00027387,3]
[327994924,1716766233315,-805.11509642,0.0002739,2]
[327994925,1716766233325,-985.50828,0.0002739,2]
[327994926,1716766233336,-500.0,0.00027397,4]
[327994927,1716766233347,-500.0,0.00027397,4]
[327994928,1716766233356,-221.87906488,0.00027397,4]
[327994929,1716766233366,-500.0,0.00027397,4]
[327994930,1716766233375,-500.0,0.00027397,4]
[327994931,1716766233385,-524.75745703,0.00027397,4]
[327994932,1716766233394,-500.0,0.00027397,4]
[327994933,1716766233403,-519.82231939,0.00027397,4]
[327994934,1716766233413,-500.0,0.00027397,4]
[327994935,1716766233422,-515.67864063,0.00027397,4]
[327994936,1716766233433,-613.92032735,0.00027397,4]
[327994937,1716766233442,-508.05468482,0.00027397,4]
[327994938,1716766233452,-464.3596522,0.00027397,4]
[327994939,1716766233464,-80.7263887,0.00027397,4]
[327994940,1716766233474,-509.63601957,0.00027397,4]
[327994941,1716766233483,-500.0,0.00027397,4]
[327994942,1716766233493,-500.0,0.00027397,4]
[327994943,1716766233502,-357.32030613,0.00027397,4]
[327994944,1716766233512,-526.97634024,0.00027397,4]
[327994945,1716766233521,-500.0,0.00027397,4]
[327994946,1716766233530,-500.0,0.00027397,4]
[327994947,1716766233540,-500.0,0.00027397,4]
[327994948,1716766233549,-463.45781627,0.00027397,4]
[327994949,1716766233559,-500.0,0.00027397,4]
[327994950,1716766233568,-200.0,0.00027397,4]
[327994951,1716766233577,-425.40436287,0.00027397,4]
[327994952,1716766233590,-74.59563713,0.00027397,4]
[327994953,1716766233599,-256.19436287,0.00027397,4]
[327994954,1716766233610,-243.80563713,0.00027397,4]
[327994955,1716766233619,-500.0,0.00027397,4]
[327994956,1716766233629,-235.57436287,0.00027397,4]
[327994957,1716766233640,-264.42563713,0.00027397,4]
[327994958,1716766233649,-175.43658807,0.00027397,4]
[327994959,1716766233661,-324.56341193,0.00027397,4]
[327994960,1716766233670,-346.22353255,0.00027397,4]
[327994961,1716766233683,-177.541626,0.00027397,4]
[327994962,1716766233692,-500.0,0.00027397,4]
[327994963,1716766233701,-342.02333039,0.00027397,4]
[327994976,1716766238102,-6470.42707571,0.00015637,2]
[327994977,1716766238112,-214.0,0.00027297,2]
[327994978,1716766238122,-157.97666961,0.00027397,4]
[327994979,1716766238132,-500.0,0.00027397,4]
[327994980,1716766238144,-510.68386519,0.00027397,4]
[327994981,1716766238154,-500.0,0.00027397,4]
[327994982,1716766238164,-500.0,0.00027397,4]
[327994983,1716766238174,-500.0,0.00027397,4]
[327994984,1716766238187,-500.0,0.00027397,4]
[327994985,1716766238197,-500.0,0.00027397,4]
[327994986,1716766238206,-500.0,0.00027397,4]
[327994987,1716766238216,-500.0,0.00027397,4]
[327994988,1716766238226,-500.0,0.00027397,4]
[327994989,1716766238237,-500.0,0.00027397,4]
[327994990,1716766238247,-500.0,0.00027397,4]
[327994991,1716766238256,-500.0,0.00027397,4]
[327994992,1716766238265,-500.0,0.00027397,4]
[327994993,1716766238275,-500.0,0.00027397,4]
[327994994,1716766238286,-500.0,0.00027397,4]
[327994996,1716766238295,-500.0,0.00027397,4]
[327994997,1716766238304,-500.0,0.00027397,4]
[327994999,1716766238314,-506.28980673,0.00027397,4]
[327995001,1716766238325,-500.0,0.00027397,4]
[327995003,1716766238334,-501.53660239,0.00027397,4]
[327995006,1716766238344,-500.0,0.00027397,4]
[327995008,1716766238354,-515.47498847,0.00027397,4]
[327995010,1716766238363,-350.23192607,0.00027397,4]
[327995012,1716766238373,-500.0,0.00027397,4]
[327995013,1716766238383,-500.0,0.00027397,4]
[327995015,1716766238394,-500.0,0.00027397,4]
[327995018,1716766238404,-500.0,0.00027397,4]
[327995019,1716766238414,-500.0,0.00027397,4]
[327995021,1716766238423,-500.0,0.00027397,4]
[327995023,1716766238435,-500.0,0.00027397,4]
[327995025,1716766238444,-500.0,0.00027397,4]
[327995026,1716766238454,-500.0,0.00027397,4]
[327995027,1716766238464,-500.0,0.00027397,4]
[327995028,1716766238474,-500.0,0.00027397,4]
[327995029,1716766238484,-500.0,0.00027397,4]
[327995030,1716766238493,-500.0,0.00027397,4]
[327995031,1716766238504,-500.0,0.00027397,4]
[327995032,1716766238513,-500.0,0.00027397,4]
[327995033,1716766238523,-500.0,0.00027397,4]
[327995035,1716766238533,-500.0,0.00027397,4]
[327995036,1716766238543,-500.0,0.00027397,4]
[327995037,1716766238553,-500.0,0.00027397,4]
[327995038,1716766238563,-500.0,0.00027397,4]
[327995039,1716766238573,-500.0,0.00027397,4]
[327995040,1716766238583,-500.0,0.00027397,4]
[327995041,1716766238594,-500.0,0.00027397,4]
[327995042,1716766238603,-500.0,0.00027397,4]
[327995043,1716766238613,-549.31922452,0.00027397,4]
[327995044,1716766238623,-500.0,0.00027397,4]
[327995045,1716766238633,-500.0,0.00027397,4]
[327995046,1716766238643,-500.0,0.00027397,4]
[327995047,1716766238653,-500.0,0.00027397,4]
[327995048,1716766238663,-500.0,0.00027397,4]
[327995049,1716766238673,-500.0,0.00027397,4]
[327995050,1716766238684,-500.0,0.00027397,4]
[327995051,1716766238693,-500.0,0.00027397,4]
[327995052,1716766238703,-500.0,0.00027397,4]
[327995053,1716766238712,-500.0,0.00027397,4]
[327995054,1716766238722,-500.0,0.00027397,4]
[327995055,1716766238732,-500.0,0.00027397,4]
[327995056,1716766238742,-500.0,0.00027397,4]
[327995057,1716766238751,-500.0,0.00027397,4]
[327995058,1716766238761,-92.06886613,0.00027397,4]
[327995059,1716766239365,-407.93113387,0.00027397,4]
[327995060,1716766239383,-500.0,0.00027397,4]
[327995061,1716766239399,-500.0,0.00027397,4]
[327995062,1716766239415,-500.0,0.00027397,4]
[327995063,1716766239430,-500.0,0.00027397,4]
[327995064,1716766239446,-500.0,0.00027397,4]
[327995065,1716766239463,-500.0,0.00027397,4]
[327995066,1716766239481,-500.0,0.00027397,4]
[327995067,1716766239497,-500.0,0.00027397,4]
[327995068,1716766239513,-500.0,0.00027397,4]
[327995069,1716766239529,-500.0,0.00027397,4]
[327995070,1716766239546,-500.0,0.00027397,4]
[327995071,1716766239562,-500.0,0.00027397,4]
[327995072,1716766239580,-500.0,0.00027397,4]
[327995073,1716766239596,-493.23748576,0.00027397,4]
[327995074,1716766239619,-6.76251424,0.00027397,4]
[327995075,1716766239634,-500.0,0.00027397,4]
[327995076,1716766239650,-159.47564817,0.00027397,4]
[327995077,1716766239670,-340.52435183,0.00027397,4]
[327995078,1716766239687,-500.0,0.00027397,4]
[327995079,1716766239704,-500.0,0.00027397,4]
[327995080,1716766239720,-500.0,0.00027397,4]
[327995081,1716766239736,-500.0,0.00027397,4]
[327995082,1716766239752,-500.0,0.00027397,4]
[327995083,1716766239768,-500.0,0.00027397,4]
[327995084,1716766239784,-500.0,0.00027397,4]
[327995085,1716766239800,-500.0,0.00027397,4]
[327995086,1716766239816,-510.70657673,0.00027397,4]
[327995087,1716766239832,-437.5283705,0.00027397,4]
[327995088,1716766239901,-62.4716295,0.00027397,4]
[327995089,1716766239917,-500.0,0.00027397,4]
[327995090,1716766239934,-500.0,0.00027397,4]
[327995091,1716766239951,-500.0,0.00027397,4]
[327995092,1716766239966,-500.0,0.00027397,4]
[327995093,1716766239982,-500.0,0.00027397,4]
[327995094,1716766239997,-500.0,0.00027397,4]
[327995095,1716766240013,-77.63102914,0.00027397,4]
[327995096,1716766240032,-422.36897086,0.00027397,4]
[327995097,1716766240048,-500.0,0.00027397,4]
[327995098,1716766240061,-500.0,0.00027397,4]
[327995099,1716766240077,-500.0,0.00027397,4]
[327995100,1716766240092,-500.0,0.00027397,4]
[327995101,1716766240247,-500.0,0.00027397,4]
[327995102,1716766240257,-500.0,0.00027397,4]
[327995103,1716766240267,-2000.0,0.00027397,4]
[327995104,1716766240277,-500.0,0.00027397,4]
[327995105,1716766240286,-500.0,0.00027397,4]
[327995106,1716766240296,-500.0,0.00027397,4]
[327995107,1716766240307,-500.0,0.00027397,4]
[327995108,1716766240317,-500.0,0.00027397,4]
[327995109,1716766240327,-500.0,0.00027397,4]
[327995110,1716766240336,-500.0,0.00027397,4]
[327995111,1716766240346,-492.39221982,0.00027397,4]
[327995112,1716766240356,-500.0,0.00027397,4]
[327995113,1716766240365,-500.0,0.00027397,4]
[327995114,1716766240376,-500.0,0.00027397,4]
[327995115,1716766240385,-325.63834384,0.00027397,4]
[327995126,1716766241114,-174.36165616,0.00027397,4]
[327995127,1716766241124,-500.0,0.00027397,4]
[327995128,1716766241133,-500.0,0.00027397,4]
[327995129,1716766241148,-500.0,0.00027397,4]
[327995130,1716766241158,-500.0,0.00027397,4]
[327995131,1716766241168,-500.0,0.00027397,4]
[327995132,1716766241177,-500.0,0.00027397,4]
[327995133,1716766241189,-500.0,0.00027397,4]
[327995134,1716766241198,-500.0,0.00027397,4]
[327995135,1716766241208,-500.0,0.00027397,4]
[327995136,1716766241217,-500.0,0.00027397,4]
[327995137,1716766241228,-500.0,0.00027397,4]
[327995138,1716766241239,-500.0,0.00027397,4]
[327995139,1716766241248,-500.0,0.00027397,4]
[327995140,1716766241258,-500.0,0.00027397,4]
[327995141,1716766241268,-500.0,0.00027397,4]
[327995142,1716766241277,-500.0,0.00027397,4]
[327995143,1716766241287,-500.0,0.00027397,4]
[327995144,1716766241296,-500.0,0.00027397,4]
[327995145,1716766241305,-500.0,0.00027397,4]
[327995146,1716766241315,-500.0,0.00027397,4]
[327995147,1716766241325,-500.0,0.00027397,4]
[327995148,1716766241335,-500.0,0.00027397,4]
[327995149,1716766241345,-500.0,0.00027397,4]
[327995150,1716766241356,-500.0,0.00027397,4]
[327995151,1716766241366,-500.0,0.00027397,4]
[327995152,1716766241376,-500.0,0.00027397,4]
[327995153,1716766241385,-520.66195455,0.00027397,4]
[327995154,1716766241395,-562.91358146,0.00027397,4]
[327995155,1716766241405,-505.59361328,0.00027397,4]
[327995156,1716766241415,-500.0,0.00027397,4]
[327995157,1716766241424,-500.0,0.00027397,4]
[327995158,1716766241435,-500.0,0.00027397,4]
[327995159,1716766241445,-561.74122031,0.00027397,4]
[327995160,1716766241455,-500.0,0.00027397,4]
[327995161,1716766241465,-576.52301111,0.00027397,4]
[327995162,1716766241475,-500.0,0.00027397,4]
[327995163,1716766241485,-500.0,0.00027397,4]
[327995164,1716766241494,-238.70496313,0.00027397,4]